bitfinex-derivatives/quotes_SOLF0:USTF0_20241208
["timestamp","ask_amount","ask_price","bid_price","bid_amount"]
[1733658395081,2.1139,236.37,236.34,2.1141]
[1733658395286,2.1139,236.37,236.35,1.05794609]
[1733658395487,2.1137,236.38,236.36,1.05791457]
[1733658395687,2.1137,236.38,236.35,2.114]
[1733658395888,2.1137,236.38,236.36,1.0579115]
[1733658396091,2.1137,236.38,236.28,1.98456569]
[1733658396284,2.1137,236.38,236.31,2.1143]
[1733658396589,2.1137,236.38,236.32,4.86637542]
[1733658396790,2.1137,236.38,236.33,4.86637542]
[1733658396990,2.1137,236.38,236.34,4.86466002]
[1733658397192,2.1137,236.38,236.35,2.75056002]
[1733658397389,2.1137,236.38,236.36,1.0579077]
[1733658397589,2.1137,236.38,236.37,1.0579077]
[1733658397793,2.1136,236.4,236.37,1.0579077]
[1733658397991,1.88,236.41,236.38,1.05786718]
[1733658398184,1.88,236.41,236.3,0.10456569]
[1733658398389,2.1136,236.39,236.34,2.1141]
[1733658398592,2.1136,236.39,236.35,2.75049279]
[1733658398785,1.88,236.41,236.36,1.05788184]
[1733658398991,1.88,236.41,236.37,1.05788184]
[1733658399194,1.88,236.41,236.34,2.1141]
[1733658399388,1.88,236.41,236.35,4.86458235]
[1733658399588,1.88,236.41,236.36,2.75058235]
[1733658399792,2.1136,236.4,236.37,1.05791629]
[1733658399991,2.1136,236.4,236.38,1.05791629]
[1733658400195,2.1136,236.4,236.35,2.114]
[1733658400494,2.1136,236.4,236.36,4.86431466]
[1733658400694,2.1136,236.4,236.37,1.05785179]
[1733658400888,5.3331,236.42,236.38,3.17155179]
[1733658401095,3.2197,236.42,236.39,1.05785179]
[1733658401396,1.88,236.42,236.4,1.05785179]
[1733658401588,1.88,236.45,236.33,1.88]
[1733658401787,1.88,236.45,236.34,4.86569606]
[1733658401788,2.1133,236.43,236.34,4.86569606]
[1733658401999,2.1133,236.43,236.35,4.86569606]
[1733658402191,2.1133,236.43,236.36,4.86569606]
[1733658402494,2.1133,236.43,236.38,2.1137]
[1733658402693,2.1133,236.43,236.39,1.05776001]
[1733658402998,2.1133,236.43,236.4,1.05776001]
[1733658403192,2.1133,236.43,236.38,2.1137]
[1733658403494,2.1133,236.43,236.39,1.05779116]
[1733658403694,2.1133,236.43,236.38,2.1137]
[1733658403887,2.1133,236.43,236.39,1.05778017]
[1733658404091,2.1133,236.43,236.4,1.05778017]
[1733658404292,1.2926,236.52,236.33,1.88]
[1733658404593,1.88,236.51,236.42,2.1133]
[1733658405094,2.1131,236.46,236.42,2.1133]
[1733658407888,1.88,236.51,236.38,1.88]
[1733658408096,1.88,236.51,236.39,2.74984776]
[1733658408396,1.88,236.51,236.4,2.74984776]
[1733658408593,1.88,236.51,236.41,1.05763375]
[1733658408794,2.1128,236.48,236.41,2.1134]
[1733658408995,2.1128,236.48,236.42,1.05757407]
[1733658409192,2.1128,236.48,236.38,1.88]
[1733658409395,2.1128,236.48,236.39,2.74969069]
[1733658409595,2.1128,236.48,236.44,2.1132]
[1733658409786,2.1128,236.48,236.38,1.88]
[1733658409988,2.1128,236.48,236.39,2.74969259]
[1733658410190,1.88,236.5,236.4,2.74969259]
[1733658410393,1.88,236.5,236.33,1.88]
[1733658410594,1.88,236.5,236.34,6.74537966]
[1733658410788,1.88,236.5,236.35,2.7499972]
[1733658410994,1.88,236.5,236.36,2.7499972]
[1733658411197,2.1135,236.41,236.37,3.17139123]
[1733658411494,2.1135,236.41,236.37,2.1137]
[1733658412693,2.1135,236.41,236.38,2.1137]
[1733658413500,2.1134,236.43,236.34,1.88]
[1733658413696,2.1134,236.43,236.39,2.1136]
[1733658414401,1.88,236.44,236.34,1.88]
[1733658414605,2.1131,236.46,236.35,2.75008349]
[1733658414898,1.2926,236.52,236.36,2.75008349]
[1733658414899,1.88,236.49,236.36,2.75008349]
[1733658415096,2.113,236.46,236.42,2.1133]
[1733658415494,2.113,236.46,236.34,1.88]
[1733658415695,1.88,236.49,236.34,1.88]
[1733658415899,1.88,236.49,236.35,4.86505784]
[1733658416200,1.88,236.49,236.36,4.86494062]
[1733658416395,1.88,236.49,236.37,2.7498153]
[1733658416396,2.1129,236.48,236.37,2.7498153]
[1733658416591,2.1129,236.48,236.38,1.05762127]
[1733658416793,2.1129,236.48,236.39,2.93762127]
[1733658416994,2.1129,236.48,236.4,1.88]
[1733658417594,2.1129,236.48,236.44,2.1132]
[1733658419202,1.88,236.51,236.4,1.88]
[1733658419501,1.2926,236.52,236.4,1.88]
[1733658419699,1.2926,236.52,236.48,2.1129]
[1733658420002,3.4051,236.52,236.48,2.1129]
[1733658420597,2.1126,236.51,236.47,2.113]
[1733658421103,1.2926,236.52,236.4,1.88]
[1733658421405,2.1129,236.48,236.45,2.1132]
[1733658421901,2.1128,236.49,236.45,2.1132]
[1733658422103,1.2926,236.52,236.45,2.1132]
[1733658422300,1.2926,236.52,236.43,2.1133]
[1733658422806,2.1128,236.5,236.43,2.1133]
[1733658423001,1.2926,236.52,236.43,2.1133]
[1733658423510,2.1131,236.47,236.43,2.1133]
[1733658424601,2.1131,236.47,236.39,1.88]
[1733658424804,2.1131,236.47,236.42,2.1134]
[1733658426003,2.1131,236.47,236.43,2.1133]
[1733658432313,2.1131,236.47,236.39,1.88]
[1733658432812,1.88,236.48,236.39,1.88]
[1733658433215,2.1134,236.43,236.38,2.1137]
[1733658433511,1.88,236.48,236.35,1.88]
[1733658433902,1.88,236.48,236.28,0.1041849]
[1733658434104,1.88,236.48,236.3,6.74585866]
[1733658434303,1.88,236.48,236.31,4.86585866]
[1733658434510,2.1132,236.45,236.32,2.75026794]
[1733658434714,2.1132,236.45,236.33,4.86571054]
[1733658434905,2.1132,236.45,236.41,2.1135]
[1733658435109,2.1131,236.46,236.37,1.88]
[1733658435302,2.1131,236.46,236.38,2.74988486]
[1733658435507,1.88,236.48,236.39,1.05764802]
[1733658435707,1.88,236.48,236.4,1.05764802]
[1733658435908,1.88,236.48,236.37,1.88]
[1733658436108,1.88,236.48,236.42,2.1134]
[1733658436409,3.1726,236.52,236.37,1.88]
[1733658436603,3.1726,236.52,236.47,2.113]
[1733658436817,1.2926,236.52,236.42,1.88]
[1733658437313,3.4052,236.52,236.42,1.88]
[1733658437528,1.2926,236.52,236.43,1.05746889]
[1733658437814,4.5264,236.53,236.44,2.74926066]
[1733658437815,1.88,236.53,236.44,2.74926066]
[1733658438114,1.88,236.53,236.5,2.1127]
[1733658439109,2.1124,236.54,236.5,2.1127]
[1733658439707,2.1124,236.54,236.42,1.88]
[1733658439905,2.1124,236.54,236.43,2.74918849]
[1733658440207,2.1124,236.54,236.44,2.74918849]
[1733658440515,2.1124,236.54,236.45,1.05738019]
[1733658440712,2.1124,236.54,236.46,1.05738019]
[1733658440914,2.1124,236.54,236.42,1.88]
[1733658441119,2.1124,236.54,236.43,2.74920017]
[1733658441316,2.1124,236.54,236.44,2.74920017]
[1733658441513,2.1125,236.53,236.49,2.1128]
[1733658441713,1.88,236.55,236.42,1.88]
[1733658442217,1.88,236.55,236.43,1.05742364]
[1733658442413,1.88,236.55,236.42,1.88]
[1733658442614,2.1125,236.54,236.49,2.1127]
[1733658444328,2.1125,236.54,236.5,2.1127]
[1733658445422,3.42,236.54,236.5,2.1127]
[1733658445625,3.42,236.54,236.49,2.1128]
[1733658452822,2.1125,236.53,236.49,2.1128]
[1733658454732,3.4199,236.54,236.5,2.1127]
[1733658454932,3.4199,236.54,236.42,1.88]
[1733658454933,1.3075,236.54,236.42,1.88]
[1733658455135,1.3075,236.54,236.43,2.74925885]
[1733658455437,1.3075,236.54,236.51,2.1125]
[1733658456129,3.9921,236.58,236.53,2.1124]
[1733658457737,2.1121,236.58,236.53,2.1124]
[1733658457935,3.9921,236.58,236.53,2.1124]
[1733658458130,1.88,236.58,236.53,2.1124]
[1733658458435,2.1121,236.57,236.53,2.1124]
[1733658461137,1.88,236.58,236.53,2.1124]
[1733658461333,2.1122,236.56,236.53,2.1124]
[1733658461840,2.1122,236.56,236.51,2.1125]
[1733658463140,1.88,236.59,236.51,2.1125]
[1733658463444,1.88,236.59,236.5,2.1127]
[1733658463746,1.88,236.58,236.5,2.1127]
[1733658463938,2.1124,236.54,236.5,2.1127]
[1733658467241,2.1124,236.54,236.47,1.88]
[1733658467448,2.1124,236.54,236.51,2.1126]
[1733658467749,2.1124,236.54,236.47,1.88]
[1733658468248,1.88,236.58,236.47,1.88]
[1733658468549,1.88,236.61,236.47,1.88]
[1733658468846,2.1122,236.56,236.52,2.1125]
[1733658469849,2.1122,236.56,236.53,2.1124]
[1733658470246,2.1122,236.56,236.47,1.88]
[1733658470444,2.1122,236.56,236.48,1.05730644]
[1733658470644,1.88,236.6,236.47,1.88]
[1733658470947,2.1121,236.57,236.53,2.1124]
[1733658471746,2.1121,236.57,236.54,2.1123]
[1733658472146,1.88,236.6,236.54,2.1123]
[1733658472147,2.112,236.58,236.54,2.1123]
[1733658472445,1.88,236.6,236.55,2.1123]
[1733658473246,1.88,236.62,236.56,2.1122]
[1733658474650,2.1119,236.6,236.56,2.1122]
[1733658480347,2.1119,236.59,236.52,1.88]
[1733658481650,2.1119,236.59,236.56,2.1122]
[1733658484247,2.1118,236.6,236.56,2.1122]
[1733658484451,1.88,236.63,236.52,1.88]
[1733658484651,1.88,236.63,236.59,2.1119]
[1733658484848,1.88,236.66,236.59,2.1119]
[1733658485053,3.9784,236.67,236.52,1.88]
[1733658485253,5.8584,236.67,236.52,1.88]
[1733658485751,2.1116,236.63,236.52,1.88]
[1733658486549,2.1116,236.63,236.58,2.1119]
[1733658486745,2.1116,236.63,236.52,1.88]
[1733658486951,2.1116,236.63,236.53,1.05710264]
[1733658487148,2.1116,236.63,236.52,1.88]
[1733658487346,2.1116,236.63,236.53,1.05710263]
[1733658487546,5.8584,236.67,236.52,1.88]
[1733658487755,2.1114,236.66,236.53,1.05710498]
[1733658488054,2.1114,236.66,236.54,1.05710498]
[1733658488249,2.1114,236.66,236.61,2.1117]
[1733658488448,2.1114,236.66,236.52,1.88]
[1733658488449,2.6942,236.67,236.58,1.88]
[1733658489055,2.1114,236.66,236.62,2.1116]
[1733658491051,1.88,236.72,236.58,1.88]
[1733658491653,1.88,236.72,236.63,2.1115]
[1733658492451,2.1113,236.66,236.61,2.1117]
[1733658492646,1.88,236.72,236.59,1.88]
[1733658492847,1.88,236.72,236.57,1.88]
[1733658493155,1.88,236.72,236.56,1.88]
[1733658493551,1.88,236.72,236.59,2.1118]
[1733658494058,2.1115,236.65,236.59,2.1118]
[1733658494259,1.88,236.67,236.56,1.88]
[1733658494454,1.88,236.67,236.6,2.1118]
[1733658495056,1.88,236.67,236.56,1.88]
[1733658495357,1.88,236.67,236.61,2.1117]
[1733658495658,1.88,236.7,236.61,2.1117]
[1733658495859,1.88,236.7,236.6,2.1118]
[1733658496059,1.88,236.7,236.56,1.88]
[1733658497052,2.1115,236.64,236.58,2.1119]
[1733658497757,2.1116,236.63,236.58,2.1119]
[1733658498965,2.1117,236.62,236.58,2.1119]
[1733658499155,1.352,236.64,236.56,2.1121]
[1733658499655,1.352,236.64,236.55,2.1123]
[1733658499656,4.0777,236.64,236.55,2.1123]
[1733658500059,2.112,236.59,236.55,2.1123]
[1733658501463,4.0777,236.64,236.51,1.88]
[1733658501670,4.0777,236.64,236.5,71.16957908]
[1733658502162,2.1122,236.56,236.51,2.1126]
[1733658503364,2.1123,236.55,236.48,1.88]
[1733658503564,2.1123,236.55,236.5,2.1127]
[1733658503771,1.88,236.58,236.5,2.1127]
[1733658504366,2.1122,236.56,236.5,2.1127]
[1733658504563,1.88,236.58,236.5,2.1127]
[1733658505868,2.1125,236.53,236.48,2.1128]
[1733658506069,1.88,236.58,236.46,1.88]
[1733658506267,1.88,236.58,236.42,72.50941473]
[1733658506463,2.1128,236.5,236.44,2.1132]
[1733658506971,1.88,236.52,236.42,72.50941473]
[1733658508667,3.9926,236.52,236.47,2.113]
[1733658510866,2.1127,236.5,236.42,72.50941473]
[1733658511072,2.1127,236.5,236.45,2.1131]
[1733658514179,2.1129,236.49,236.45,2.1131]
[1733658514572,1.88,236.52,236.43,2.1133]
[1733658514771,2.733,236.51,236.42,72.50941473]
[1733658515777,2.733,236.51,236.39,1.88]
[1733658515973,2.733,236.51,236.4,1.05743847]
[1733658516173,2.733,236.51,236.41,1.05743847]
[1733658516379,2.733,236.51,236.39,1.88]
[1733658516576,2.113,236.48,236.43,2.1133]
[1733658517184,2.1132,236.45,236.41,2.1135]
[1733658518575,2.1131,236.47,236.37,1.88]
[1733658518774,2.1131,236.47,236.43,2.1133]
[1733658519275,4.0916,236.51,236.44,2.1132]
[1733658519276,2.1129,236.49,236.44,2.1132]
[1733658519480,4.0916,236.51,236.44,2.1132]
[1733658520081,2.733,236.51,236.46,2.113]
[1733658520281,1.3588,236.51,236.46,2.113]
[1733658520477,1.3588,236.51,236.42,1.88]
[1733658520678,1.3588,236.51,236.43,1.88]
[1733658521377,1.3588,236.51,236.48,2.1128]
[1733658521579,2.1125,236.53,236.43,1.88]
[1733658521986,2.1125,236.53,236.49,2.1127]
[1733658522387,1.2843,236.63,236.43,1.88]
[1733658522388,2.1123,236.55,236.43,1.88]
[1733658522579,2.1123,236.55,236.44,1.05718866]
[1733658522784,2.1123,236.55,236.43,1.88]
[1733658522984,2.1123,236.55,236.5,2.1127]
[1733658523183,2.1124,236.54,236.5,2.1127]
[1733658523584,1.88,236.58,236.5,2.1127]
[1733658523985,2.1124,236.54,236.5,2.1127]
[1733658524183,1.88,236.58,236.37,1.061]
[1733658524384,1.88,236.58,236.38,10.41825637]
[1733658524585,2.1126,236.52,236.39,5.92040648]
[1733658524782,2.1126,236.52,236.48,2.1129]
[1733658525985,1.88,236.58,236.43,1.88]
[1733658525986,2.1126,236.51,236.43,1.88]
[1733658526190,1.88,236.53,236.44,2.74878561]
[1733658526389,1.88,236.53,236.41,1.88]
[1733658526592,1.88,236.53,236.42,2.74907349]
[1733658526791,1.2966,236.52,236.43,1.05733596]
[1733658527093,1.2966,236.52,236.41,1.88]
[1733658527286,1.2966,236.52,236.42,1.05739324]
[1733658527486,1.2966,236.52,236.43,1.05739324]
[1733658527689,2.1129,236.49,236.41,1.88]
[1733658527885,2.1129,236.49,236.42,1.05739251]
[1733658528090,2.1129,236.49,236.44,2.1132]
[1733658529089,1.2966,236.52,236.4,1.88]
[1733658529290,2.113,236.47,236.43,2.1133]
[1733658529892,2.113,236.47,236.44,2.1132]
[1733658531599,2.6635,236.52,236.44,2.1132]
[1733658531799,2.1129,236.48,236.44,2.1132]
[1733658533296,2.113,236.47,236.43,2.1133]
[1733658534696,2.113,236.47,236.44,2.1132]
[1733658534997,2.113,236.47,236.38,1.88]
[1733658534998,2.1128,236.49,236.38,1.88]
[1733658535196,2.1128,236.49,236.39,2.74918104]
[1733658535397,2.1129,236.48,236.44,2.1132]
[1733658536298,2.1129,236.48,236.42,2.1133]
[1733658536495,3.9348,236.52,236.42,2.1133]
[1733658536801,3.9348,236.52,236.38,1.88]
[1733658537000,3.9348,236.52,236.41,2.1135]
[1733658537697,3.9348,236.52,236.39,2.1137]
[1733658538098,3.9348,236.52,236.35,73.09898271]
[1733658538302,3.9348,236.52,236.36,1.05757044]
[1733658538498,3.9348,236.52,236.37,1.05757044]
[1733658538699,2.1135,236.42,236.37,2.1139]
[1733658539201,2.1136,236.41,236.36,2.1139]
[1733658539505,2.1136,236.41,236.37,1.05766211]
[1733658539705,2.1136,236.41,236.35,73.09898271]
[1733658540005,2.1136,236.4,236.36,3.17159581]
[1733658540202,1.88,236.44,236.35,73.09898271]
[1733658540404,2.1138,236.38,236.36,1.05771922]
[1733658540703,2.1138,236.38,236.29,1.88]
[1733658540904,2.1137,236.4,236.34,2.1141]
[1733658541097,2.1137,236.4,236.35,1.057723]
[1733658541400,2.1137,236.4,236.36,1.057723]
[1733658541606,2.1137,236.39,236.34,2.1141]
[1733658541800,2.1137,236.39,236.35,1.05772281]
[1733658542001,2.1137,236.39,236.36,1.05772281]
[1733658542303,2.1138,236.38,236.34,2.1141]
[1733658542497,2.1138,236.38,236.35,1.0577234]
[1733658542703,4.0599,236.43,236.36,1.0577234]
[1733658542903,4.0599,236.43,236.3,1.88]
[1733658543203,4.0599,236.43,236.31,4.86595484]
[1733658543405,2.114,236.37,236.32,4.8646223]
[1733658543601,2.114,236.37,236.32,2.1143]
[1733658543797,2.114,236.37,236.33,2.75037748]
[1733658543997,1.88,236.39,236.34,1.05783749]
[1733658544203,1.88,236.39,236.27,1.98381846]
[1733658544404,1.88,236.39,236.28,5.92392983]
[1733658544706,1.88,236.39,236.29,4.86608522]
[1733658544907,1.88,236.39,236.3,4.86608522]
[1733658545106,1.88,236.39,236.31,2.75039599]
[1733658545310,1.88,236.39,236.32,2.75039599]
[1733658545511,1.88,236.39,236.33,1.05784461]
[1733658545700,1.88,236.39,236.34,1.05784461]
[1733658545904,1.88,236.39,236.32,2.1143]
[1733658546111,1.88,236.39,236.33,1.05784419]
[1733658546406,1.88,236.39,236.34,1.05784419]
[1733658546597,2.114,236.36,236.27,0.10381846]
[1733658546801,2.114,236.36,236.31,2.1144]
[1733658546997,2.114,236.36,236.32,1.05784433]
[1733658547201,2.114,236.36,236.33,1.05784433]
[1733658547499,1.88,236.39,236.29,2.1145]
[1733658547703,1.88,236.39,236.3,1.05786335]
[1733658547903,1.88,236.39,236.24,1.88]
[1733658548103,1.88,236.39,236.28,2.1147]
[1733658548299,1.88,236.39,236.29,1.05795022]
[1733658548513,1.88,236.39,236.28,2.1147]
[1733658548804,1.88,236.39,236.29,1.05796998]
[1733658549008,1.88,236.39,236.28,2.1147]
[1733658549309,2.1143,236.32,236.28,2.1147]
[1733658549504,2.1143,236.32,236.21,0.10381846]
[1733658549505,1.88,236.33,236.2,0.10381846]
[1733658549711,1.88,236.32,236.26,2.1148]
[1733658550106,2.1145,236.3,236.26,2.1148]
[1733658550411,1.88,236.32,236.21,1.88]
[1733658550612,1.88,236.32,236.22,2.75118218]
[1733658550909,1.88,236.32,236.23,1.05814699]
[1733658551105,1.88,236.32,236.24,1.05814699]
[1733658551408,1.88,236.32,236.13,4.232]
[1733658551409,1.88,236.32,236.23,2.1151]
[1733658551615,1.88,236.32,236.24,1.05813929]
[1733658551616,4.0483,236.31,236.24,1.05813929]
[1733658551801,2.1148,236.27,236.22,2.1152]
[1733658552110,3.9948,236.27,236.23,1.05814024]
[1733658552315,3.9948,236.27,236.22,2.1152]
[1733658552611,3.9948,236.27,236.23,1.05814536]
[1733658552809,3.9948,236.27,236.22,2.1152]
[1733658553006,3.9948,236.27,236.23,1.05814491]
[1733658553215,3.9948,236.27,236.23,2.1151]
[1733658553806,4.0483,236.31,236.18,1.88]
[1733658554009,1.88,236.34,236.19,4.86751999]
[1733658554208,2.7682,236.46,236.2,4.86751999]
[1733658554405,2.114,236.36,236.31,2.1143]
[1733658555112,1.88,236.37,236.26,1.88]
[1733658555312,1.88,236.37,236.27,2.75054759]
[1733658555518,1.88,236.37,236.28,2.75054759]
[1733658555815,1.88,236.37,236.29,1.05790292]
[1733658556007,1.88,236.37,236.32,2.1143]
[1733658556008,3.9939,236.37,236.32,2.1143]
[1733658556406,1.88,236.37,236.26,1.88]
[1733658556607,1.88,236.37,236.27,2.7505451]
[1733658556915,3.9939,236.37,236.31,2.1144]
[1733658557412,1.88,236.37,236.31,2.1144]
[1733658557813,3.9939,236.37,236.32,2.1143]
[1733658561622,1.88,236.37,236.26,1.88]
[1733658561920,1.88,236.37,236.27,2.75055456]
[1733658562121,1.88,236.37,236.33,2.1142]
[1733658563615,3.9939,236.37,236.33,2.1142]
[1733658564220,1.88,236.37,236.33,2.1142]
[1733658564917,3.9939,236.37,236.33,2.1142]
[1733658566819,1.88,236.37,236.33,2.1142]
[1733658567713,3.9938,236.38,236.33,2.1142]
[1733658568320,2.1139,236.37,236.33,2.1142]
[1733658568920,1.88,236.38,236.26,1.88]
[1733658569119,2.1141,236.34,236.27,1.05792146]
[1733658569320,1.3275,236.36,236.29,2.1145]
[1733658569524,1.3275,236.36,236.26,1.88]
[1733658569824,1.3275,236.36,236.27,1.05796171]
[1733658570025,1.3275,236.36,236.26,1.88]
[1733658570217,1.3275,236.36,236.27,1.05796183]
[1733658570417,2.1143,236.33,236.29,2.1146]
[1733658570617,2.1143,236.33,236.26,1.88]
[1733658570826,1.3275,236.36,236.27,1.05795305]
[1733658571022,1.3275,236.36,236.28,1.05795305]
[1733658571221,1.3275,236.36,236.26,1.88]
[1733658571525,1.3275,236.36,236.27,1.05794476]
[1733658571722,2.1143,236.32,236.22,1.88]
[1733658572021,2.1143,236.32,236.23,4.8666266]
[1733658572226,2.1144,236.31,236.27,2.1147]
[1733658572418,1.88,236.33,236.27,2.1147]
[1733658575317,2.1145,236.31,236.21,1.88]
[1733658575527,2.1145,236.31,236.28,2.1147]
[1733658575729,1.88,236.33,236.28,2.1147]
[1733658576727,2.1143,236.32,236.28,2.1147]
[1733658578432,2.1143,236.32,236.29,1.05804893]
[1733658578730,2.1143,236.32,236.28,2.1147]
[1733658579032,2.1143,236.32,236.29,1.05804893]
[1733658579327,2.1143,236.32,236.28,2.1147]
[1733658579526,2.1143,236.32,236.29,1.05805859]
[1733658579727,2.1143,236.32,236.28,2.1147]
[1733658579925,2.1143,236.32,236.29,1.05805859]
[1733658580126,2.1143,236.32,236.28,2.1147]
[1733658580323,2.1143,236.32,236.29,1.05805346]
[1733658580524,2.1143,236.32,236.28,2.1147]
[1733658580725,2.1143,236.32,236.29,1.05805346]
[1733658580926,2.1143,236.32,236.3,1.05805346]
[1733658581126,2.1143,236.32,236.28,2.1147]
[1733658581326,2.1143,236.32,236.29,1.05805278]
[1733658581530,2.1143,236.32,236.23,0.10383399]
[1733658581531,2.1143,236.32,236.3,1.05805278]
[1733658581729,2.1143,236.32,236.27,2.1147]
[1733658581930,2.1143,236.32,236.28,2.75093711]
[1733658582127,3.9942,236.33,236.29,1.05805273]
[1733658582329,1.88,236.33,236.3,1.05804395]
[1733658582623,1.3275,236.36,236.21,1.88]
[1733658582624,1.88,236.35,236.31,1.05804395]
[1733658582823,1.88,236.35,236.32,1.05804395]
[1733658583023,1.88,236.35,236.25,0.10400947]
[1733658583225,1.88,236.35,236.26,5.92467239]
[1733658583423,1.88,236.35,236.27,4.86669518]
[1733658583726,2.1141,236.34,236.3,2.1144]
[1733658583925,2.1141,236.34,236.31,2.75074075]
[1733658584128,2.1141,236.34,236.32,1.05797721]
[1733658584325,2.1141,236.34,236.3,2.1144]
[1733658584631,1.88,236.35,236.21,1.88]
[1733658584833,1.88,236.35,236.31,2.1143]
[1733658585130,1.88,236.35,236.32,1.05794277]
[1733658585337,1.88,236.35,236.33,1.05794277]
[1733658585537,1.88,236.35,236.34,1.05794277]
[1733658585739,3.994,236.35,236.34,1.05794277]
[1733658586038,3.994,236.35,236.21,1.88]
[1733658586338,3.994,236.35,236.26,0.10412808]
[1733658586537,3.994,236.35,236.3,2.1144]
[1733658586737,2.1141,236.34,236.31,2.75065048]
[1733658586938,2.1141,236.34,236.32,1.05794204]
[1733658587135,2.1141,236.34,236.33,1.05794204]
[1733658588433,2.1141,236.34,236.33,1.05801812]
[1733658592034,2.1143,236.33,236.29,2.1146]
[1733658592237,2.1143,236.33,236.3,2.75084902]
[1733658592542,2.1143,236.32,236.31,1.05801885]
[1733658593137,1.88,236.35,236.28,2.1146]
[1733658593340,2.1144,236.31,236.29,2.75086043]
[1733658593536,2.1144,236.31,236.3,1.05802324]
[1733658595137,1.88,236.35,236.24,0.10394514]
[1733658595438,2.1148,236.27,236.25,2.75085106]
[1733658595638,2.1148,236.27,236.19,0.10394514]
[1733658595839,2.1148,236.27,236.2,4.86798185]
[1733658596035,2.1148,236.27,236.22,2.1152]
[1733658596239,2.1148,236.27,236.23,1.69321108]
[1733658596433,1.88,236.29,236.22,2.1152]
[1733658597434,2.1151,236.23,236.19,2.1154]
[1733658597742,1.88,236.29,236.2,1.69340774]
[1733658597944,1.88,236.29,236.21,1.69340774]
[1733658598239,1.88,236.29,236.2,2.1153]
[1733658598436,1.88,236.29,236.21,1.69346111]
[1733658598633,2.1151,236.24,236.18,2.1155]
[1733658598840,2.1151,236.24,236.19,3.81028486]
[1733658599038,2.1151,236.23,236.2,1.69345994]
[1733658599237,2.6729,236.28,236.18,2.1155]
[1733658599442,2.6729,236.28,236.19,1.69349775]
[1733658599637,2.1152,236.23,236.18,2.1155]
[1733658599839,2.1152,236.23,236.19,1.69350372]
[1733658600040,2.1152,236.23,236.2,1.69350372]
[1733658600234,2.1153,236.22,236.14,0.10412391]
[1733658600444,2.1153,236.22,236.15,3.81044072]
[1733658600643,1.88,236.24,236.16,1.69352921]
[1733658600844,1.88,236.24,236.17,1.69352921]
[1733658601044,2.1151,236.23,236.16,2.1157]
[1733658601240,2.1151,236.23,236.17,1.69367767]
[1733658601448,2.1151,236.23,236.18,1.69367767]
[1733658601647,2.1151,236.23,236.13,0.10412391]
[1733658601857,2.1151,236.23,236.14,4.86918061]
[1733658602064,2.1151,236.23,236.15,3.81066309]
[1733658602362,2.1151,236.23,236.16,3.81066309]
[1733658602548,2.1151,236.23,236.19,2.1154]
[1733658604256,1.88,236.24,236.11,1.88]
[1733658604449,2.1152,236.22,236.11,1.88]
[1733658604958,2.1152,236.22,236.12,4.86926752]
[1733658605460,2.1152,236.22,236.12,1.05853646]
[1733658605751,2.1152,236.22,236.18,2.1155]
[1733658606959,2.1151,236.23,236.11,1.9841442]
[1733658607155,2.1151,236.23,236.12,5.92791126]
[1733658607355,2.1151,236.23,236.18,2.1155]
[1733658607551,2.1152,236.22,236.18,2.1155]
[1733658609155,1.88,236.24,236.09,0.10393813]